Workbook

Sheet Лист1
A1: Школа | C1: МКОУ "СШ № 11" | F1: Утвердил: | G1: должность | H1: Директор ООО "Комбинат питания"
A2: Типовое примерное меню приготавливаемых блюд | G2: фамилия | H2: Московскин С.С.
A3: Возрастная категория | E3: 7-11 лет | G3: дата | H3: 20 | I3: 1 | J3: 2025
H4: день | I4: месяц | J4: год
A5: Неделя | B5: День недели | C5: Прием пищи | D5: Раздел меню | E5: Блюда | F5: Вес блюда, г | G5: Белки | H5: Жиры | I5: Углеводы | J5: Калорийность | K5: № рецептуры | L5: Цена
A6: 1 | B6: 1 | C6: Завтрак | D6: хол.блюдо | E6: Бутерброд с сыром | F6: 50 | G6: 6.1 | H6: 8.7 | I6: 14.8 | J6: 162 | K6: 3/2017
D7: гор.блюдо | E7: Каша "Дружба" | F7: 150 | G7: 6.5 | H7: 8.3 | I7: 25.1 | J7: 211 | K7: 356/2022
D8: гор.напиток | E8: Кофейный напиток злаковый на молоке | F8: 200 | G8: 3 | H8: 1.8 | I8: 26 | J8: 124 | K8: 774/2022
D10: фрукты | E10: Плоды свежие | F10: 100 | G10: 0.4 | H10: 0.4 | I10: 9.8 | J10: 44 | K10: 338/2017
D13: итого | F13: =SUM(F6:F12) -> 500 | G13: =SUM(G6:G12) -> 16 | H13: 19.2 | I13: 75.7 | J13: 541 | L13: 138.85
A14: =A6 -> 1 | B14: =B6 -> 1 | C14: Обед | D14: закуска | E14: Овощи сезенные порционно (свежие или соленые огурцы или помидоры; квашенная капуста; вареные морковь или свекла) | F14: 60 | G14: 0.9 | H14: 0.1 | I14: 5.3 | J14: 26 | K14: т.24/1996
D15: 1 блюдо | E15: Суп картофельный с горохом | F15: 200 | G15: 5 | H15: 5.5 | I15: 17.8 | J15: 134 | K15: 102/2017
D16: 2 блюдо | E16: Котлеты, биточки, шницели | F16: 90 | G16: 12.4 | H16: 14.8 | I16: 11.8 | J16: 231 | K16: 268/2017
D17: гарнир | E17: Рис с овощами | F17: 150 | G17: 3.5 | H17: 3.6 | I17: 33.5 | J17: 180 | K17: 665/2022
D18: напиток | E18: Чай каркадэ с сахаром | F18: 200 | G18: 0.2 | H18: 0 | I18: 15 | J18: 58 | K18: ТТК 23А
D19: хлеб бел. | E19: Хлеб из муки пшеничной | F19: 40 | G19: 2.7 | H19: 0.8 | I19: 17.6 | J19: 88 | K19: 23/2022
D23: итого | F23: =SUM(F14:F22) -> 740 | G23: =SUM(G14:G22) -> 24.7 | H23: 24.8 | I23: 101 | J23: 717 | L23: 138.85
A24: =A6 -> 1 | B24: =B6 -> 1 | C24: Итого за день: | F24: =F13+F23 -> 1240 | G24: =G13+G23 -> 40.7 | H24: 44 | I24: 176.7 | J24: 1258 | L24: =L13+L23 -> 277.7
A25: 1 | B25: 2 | C25: Завтрак | D25: гор.блюдо | E25: Плов из птицы | F25: 200 | G25: 16.4 | H25: 19.9 | I25: 34.8 | J25: 354 | K25: 291/2017
D27: гор.напиток | E27: Чай с сахаром | F27: 200 | G27: 0.2 | H27: 0 | I27: 10 | J27: 40 | K27: 782
D28: хлеб | E28: Хлеб из муки пшеничной | F28: 40 | G28: 2.7 | H28: 0.8 | I28: 17.6 | J28: 88 | K28: 23/2022
D30: закуска | E30: Овощи сезенные порционно (свежие или соленые огурцы или помидоры; квашенная капуста; вареные морковь или свекла) | F30: 60 | G30: 0.9 | H30: 0.1 | I30: 5.3 | J30: 26 | K30: т.24/1996
D32: итого | F32: =SUM(F25:F31) -> 500 | G32: =SUM(G25:G31) -> 20.2 | H32: =SUM(H25:H31) -> 20.8 | I32: =SUM(I25:I31) -> 67.7 | J32: =SUM(J25:J31) -> 508 | L32: 138.85
A33: =A25 -> 1 | B33: =B25 -> 2 | C33: Обед | D33: закуска | E33: Овощи сезонные порционно (свежие или соленые огурцы или помидоры; квашенная капуста; вареные морковь или свекла) | F33: 60 | G33: 3 | H33: 0.2 | I33: 8.3 | J33: 44 | K33: т.24/1996
D34: 1 блюдо | E34: Щи из свежей капусты с картофелем со сметаной прокипяченой | F34: 210 | G34: 1.7 | H34: 6 | I34: 6.6 | J34: 103 | K34: 88/2017
D35: 2 блюдо | E35: Котлеты или биточки рыбные любительские | F35: 90 | G35: 11.7 | H35: 10.6 | I35: 8.6 | J35: 179 | K35: 467/2022
D36: гарнир | E36: Картофель отварной | F36: 150 | G36: 3.6 | H36: 5.8 | I36: 28.6 | J36: 176 | K36: 310/2017
D37: напиток | E37: Компот из плодов сухих | F37: 200 | G37: 0.6 | H37: 0 | I37: 31.4 | J37: 124 | K37: 820/2017
D38: хлеб бел. | E38: Хлеб из муки пшеничной | F38: 60 | G38: 4 | H38: 1.2 | I38: 26.4 | J38: 132 | K38: 23/2022
D42: итого | F42: =SUM(F33:F41) -> 770 | G42: =SUM(G33:G41) -> 24.6 | H42: =SUM(H33:H41) -> 23.8 | I42: =SUM(I33:I41) -> 109.9 | J42: =SUM(J33:J41) -> 758 | L42: 138.85
A43: =A25 -> 1 | B43: =B25 -> 2 | C43: Итого за день: | F43: =F32+F42 -> 1270 | G43: =G32+G42 -> 44.8 | H43: =H32+H42 -> 44.6 | I43: =I32+I42 -> 177.6 | J43: =J32+J42 -> 1266 | L43: 277.7
A44: 1 | B44: 3 | C44: Завтрак | D44: гор.блюдо | E44: Вареники (из полуфабриката промышленного прозводства) с творогом с соусом молочным | F44: 230 | G44: 23.3 | H44: 15.3 | I44: 45.9 | J44: 368 | K44: 395/2017
D45: сладкое | E45: Кондитерское изделие | F45: 30 | G45: 3.8 | H45: 4.1 | I45: 14 | J45: 91
D46: гор.напиток | E46: Чай фруктовый | F46: 200 | G46: 0.2 | H46: 0 | I46: 10.2 | J46: 43 | K46: 783/2022
D47: хлеб | E47: Хлеб из муки пшеничной | F47: 40 | G47: 2.7 | H47: 0.8 | I47: 17.6 | J47: 88 | K47: 23/2022
D48: фрукты
D51: итого | F51: =SUM(F44:F50) -> 500 | G51: =SUM(G44:G50) -> 30 | H51: =SUM(H44:H50) -> 20.2 | I51: =SUM(I44:I50) -> 87.7 | J51: =SUM(J44:J50) -> 590 | L51: 138.85
A52: =A44 -> 1 | B52: =B44 -> 3 | C52: Обед | D52: закуска | E52: Овощи сезонные порционно (свежие или соленые огурцы или помидоры; квашенная капуста; вареные морковь или свекла) | F52: 60 | G52: 0.9 | H52: 0.1 | I52: 5.3 | J52: 26 | K52: т.24/1996
D53: 1 блюдо | E53: Суп томатный с рисом | F53: 200 | G53: 1.4 | H53: 4.5 | I53: 13.6 | J53: 92 | K53: 282/2022
D54: 2 блюдо | E54: Фрикассе из курицы | F54: 90 | G54: 11.9 | H54: 10.8 | I54: 2.1 | J54: 131 | K54: 599/2022
D55: гарнир | E55: Каша рассыпчатая гречневая | F55: 150 | G55: 8.7 | H55: 7.8 | I55: 42.6 | J55: 279 | K55: 302/2017
D56: напиток | E56: Компот из плодов сухих | F56: 200 | G56: 0.6 | H56: 0 | I56: 31.4 | J56: 124 | K56: 820/2022
D57: хлеб бел. | E57: Хлеб из муки пшеничной | F57: 30 | G57: 2 | H57: 0.6 | I57: 13.2 | J57: 66 | K57: 23/2022
D61: итого | F61: =SUM(F52:F60) -> 730 | G61: =SUM(G52:G60) -> 25.5 | H61: =SUM(H52:H60) -> 23.8 | I61: =SUM(I52:I60) -> 108.2 | J61: =SUM(J52:J60) -> 718 | L61: 138.85
A62: =A44 -> 1 | B62: =B44 -> 3 | C62: Итого за день: | F62: =F51+F61 -> 1230 | G62: =G51+G61 -> 55.5 | H62: =H51+H61 -> 44 | I62: =I51+I61 -> 195.9 | J62: =J51+J61 -> 1308 | L62: 277.7
A63: 1 | B63: 4 | C63: Завтрак | D63: гор.блюдо | E63: Котлеты, биточки, шницели (из говядины) | F63: 90 | G63: 12.4 | H63: 14.8 | I63: 11.8 | J63: 231 | K63: 208
D64: гор.блюдо | E64: Бобовые отварные | F64: 150 | G64: 14.1 | H64: 6.9 | I64: 33.5 | J64: 255 | K64: 306/2017
D65: гор.напиток | E65: Чай каркаде с сахаром | F65: 200 | G65: 0.2 | H65: 0 | I65: 15 | J65: 58 | K65: ТТК 23А
D66: хлеб | E66: Хлеб из муки пшеничной | F66: 30 | G66: 2.1 | H66: 0.6 | I66: 13.2 | J66: 66 | K66: 23/2022
D67: закуска | E67: Овощи сезонные порционно (свежие или соленые огурцы или помидоры; квашенная капуста; вареные морковь или свекла) | F67: 60 | G67: 0.9 | H67: 0.1 | I67: 5.3 | J67: 26 | K67: т.24/1996
D70: итого | F70: =SUM(F63:F69) -> 530 | G70: =SUM(G63:G69) -> 29.7 | H70: =SUM(H63:H69) -> 22.4 | I70: =SUM(I63:I69) -> 78.8 | J70: =SUM(J63:J69) -> 636 | L70: 138.85
A71: =A63 -> 1 | B71: =B63 -> 4 | C71: Обед | D71: закуска | E71: Овощи сезонные порционно (свежие или соленые огурцы или помидоры; квашенная капуста; вареные морковь или свекла) | F71: 60 | G71: 3 | H71: 0.2 | I71: 8.3 | J71: 44 | K71: т.24/1996
D72: 1 блюдо | E72: Борщ с капустой и ратофелем со сметаной прокипячнной | F72: 210 | G72: 2.1 | H72: 7.2 | I72: 11 | J72: 117 | K72: 82/2017
D73: 2 блюдо | E73: Биточки рубленые куриные | F73: 90 | G73: 14.5 | H73: 13.6 | I73: 13.6 | J73: 236 | K73: 602/2022
D74: гарнир | E74: Бобовые отварные | F74: 150 | G74: 14.1 | H74: 6.9 | I74: 33.5 | J74: 255 | K74: 306/2017
D75: напиток | E75: Компот из плодов сухих | F75: 200 | G75: 0.6 | H75: 0 | I75: 31.4 | J75: 124 | K75: 820/2022
D76: хлеб бел. | E76: Хлеб из муки пшеничной | F76: 30 | G76: 2 | H76: 0.6 | I76: 13.2 | J76: 66 | K76: 23/2022
D80: итого | F80: =SUM(F71:F79) -> 740 | G80: =SUM(G71:G79) -> 36.3 | H80: =SUM(H71:H79) -> 28.5 | I80: =SUM(I71:I79) -> 111 | J80: =SUM(J71:J79) -> 842 | L80: 138.85
A81: =A63 -> 1 | B81: =B63 -> 4 | C81: Итого за день: | F81: =F70+F80 -> 1270 | G81: =G70+G80 -> 66 | H81: =H70+H80 -> 50.9 | I81: =I70+I80 -> 189.8 | J81: =J70+J80 -> 1478 | L81: 277.7
A82: 1 | B82: 5 | C82: Завтрак | D82: гор.блюдо | E82: Каша жидкая молочная из манной крупы с маслом сливочным | F82: 160 | G82: 7.5 | H82: 8.9 | I82: 28.3 | J82: 217 | K82: 181/2017
D83: закуска | E83: Бутерброд с маслом | F83: 40 | G83: 4.5 | H83: 7.5 | I83: 14.9 | J83: 136 | K83: 1/2017
D84: гор.напиток | E84: Кофейный напиток злаковый на молоке | F84: 200 | G84: 3 | H84: 1.8 | I84: 26 | J84: 124 | K84: 774/2022
D85: фрукты | E85: Плоды свежие | F85: 100 | G85: 0.4 | H85: 0.4 | I85: 9.8 | J85: 44 | K85: 338/2017
D89: итого | F89: =SUM(F82:F88) -> 500 | G89: =SUM(G82:G88) -> 15.4 | H89: =SUM(H82:H88) -> 18.6 | I89: =SUM(I82:I88) -> 79 | J89: =SUM(J82:J88) -> 521 | L89: 138.85
A90: =A82 -> 1 | B90: =B82 -> 5 | C90: Обед | D90: закуска | E90: Овощи сезонные порционно (свежие или соленые огурцы или помидоры; квашенная капуста; вареные морковь или свекла) | F90: 60 | G90: 3 | H90: 0.2 | I90: 8.3 | J90: 44 | K90: т.24/1996
D91: 1 блюдо | E91: Суп картофельный с крупой | F91: 200 | G91: 1.6 | H91: 3.2 | I91: 9.6 | J91: 95 | K91: 101/2017
D92: 2 блюдо | E92: Рагу из мяса птицы | F92: 200 | G92: 15.1 | H92: 19.3 | I92: 24.9 | J92: 314 | K92: 598/2022
D93: гарнир
D94: напиток | E94: Компот из плодов сухих | F94: 200 | G94: 0.6 | H94: 0 | I94: 31.4 | J94: 124 | K94: 820/2022
D95: хлеб бел. | E95: Хлеб пшеничный | F95: 60 | G95: 4 | H95: 1.2 | I95: 26.4 | J95: 132 | K95: 23/2022
D99: итого | F99: =SUM(F90:F98) -> 720 | G99: =SUM(G90:G98) -> 24.3 | H99: =SUM(H90:H98) -> 23.9 | I99: =SUM(I90:I98) -> 100.6 | J99: =SUM(J90:J98) -> 709 | L99: 138.85
A100: =A82 -> 1 | B100: =B82 -> 5 | C100: Итого за день: | F100: =F89+F99 -> 1220 | G100: =G89+G99 -> 39.7 | H100: =H89+H99 -> 42.5 | I100: =I89+I99 -> 179.6 | J100: =J89+J99 -> 1230 | L100: 277.7
A101: 2 | B101: 1 | C101: Завтрак | D101: гор.блюдо | E101: Пельмени мясные отварные со сметаной | F101: 200 | G101: 16.8 | H101: 18.6 | I101: 35.3 | J101: 376 | K101: 392/2017
D102: фрукты | E102: Плоды свежие | F102: 100 | G102: 0.4 | H102: 0.4 | I102: 9.8 | J102: 44 | K102: 338/2017
D103: гор.напиток | E103: Чай с лимоном | F103: 200 | G103: 0.1 | H103: 0 | I103: 15.2 | J103: 62 | K103: 377/2017
D104: хлеб | E104: Хлеб из муки пшеничной | F104: 30 | G104: 2.1 | H104: 0.6 | I104: 13.2 | J104: 66 | K104: 23/2022
D108: итого | F108: =SUM(F101:F107) -> 530 | G108: =SUM(G101:G107) -> 19.4 | H108: 19.6 | I108: 73.5 | J108: 548 | L108: 138.85
A109: =A101 -> 2 | B109: =B101 -> 1 | C109: Обед | D109: закуска | E109: Овощи сезонные порционно (свежие или соленые огурцы или помидоры; квашенная капуста; вареные морковь или свекла) | F109: 60 | G109: 3 | H109: 0.2 | I109: 8.3 | J109: 44 | K109: т.24/1996
D110: 1 блюдо | E110: Щи "Новгородские" со сметаной прокипяченой | F110: 210 | G110: 2.9 | H110: 5.4 | I110: 8.3 | J110: 91 | K110: 287/2022
D111: 2 блюдо | E111: Котлеты, биточки, шницели | F111: 90 | G111: 12.4 | H111: 14.8 | I111: 11.8 | J111: 231 | K111: 268/2017
D112: гарнир | E112: Рис с овощами | F112: 150 | G112: 3.5 | H112: 3.6 | I112: 33.5 | J112: 180 | K112: 665/2022
D113: напиток | E113: Компот из плодов сухих | F113: 200 | G113: 0.6 | H113: 0 | I113: 31.4 | J113: 124 | K113: 820/2022
D114: хлеб | E114: Хлею из муки пшеничной | F114: 40 | G114: 2.7 | H114: 0.8 | I114: 17.6 | J114: 88 | K114: 23/2022
D118: итого | F118: =SUM(F109:F117) -> 750 | G118: =SUM(G109:G117) -> 25.1 | H118: 24.8 | I118: 110.9 | J118: 758 | L118: 138.85
A119: =A101 -> 2 | B119: =B101 -> 1 | C119: Итого за день: | F119: =F108+F118 -> 1280 | G119: =G108+G118 -> 44.5 | H119: =H108+H118 -> 44.4 | I119: =I108+I118 -> 184.4 | J119: =J108+J118 -> 1306 | L119: 277.7
A120: 2 | B120: 2 | C120: Завтрак | D120: закуска | E120: Овощи сезонные порционно (свежие или соленые огурцы или помидоры; квашенная капуста; вареные морковь или свекла) | F120: 60 | G120: 0.9 | H120: 0.1 | I120: 5.3 | J120: 26 | K120: т.24/1996
D121: гор.блюдо | E121: Котлеты или биточки рыбные любительские | F121: 90 | G121: 11.7 | H121: 10.6 | I121: 8.6 | J121: 179 | K121: 467/2022
D122: гор.блюдо | E122: Картофель отварной | F122: 150 | G122: 3.6 | H122: 5.8 | I122: 28.6 | J122: 176 | K122: 310/2017
D123: гор.напиток | E123: Чай каркаде с сахаром | F123: 200 | G123: 0.2 | H123: 0 | I123: 15 | J123: 58 | K123: ТТК 23А
D124: хлеб | E124: Хлеб из муки пшеничной | F124: 30 | G124: 2.1 | H124: 0.6 | I124: 13.2 | J124: 66 | K124: 23/2022
D127: итого | F127: =SUM(F120:F126) -> 530 | G127: =SUM(G120:G126) -> 18.5 | H127: 17.1 | I127: 70.7 | J127: 505 | L127: 138.85
A128: =A120 -> 2 | B128: =B120 -> 2 | C128: Обед | D128: закуска | E128: Овощи сезонные порционно (свежие или соленные огурцы или помидоры; квашенная капуста; вареные морковь или свекла) | F128: 60 | G128: 3 | H128: 0.2 | I128: 8.3 | J128: 44 | K128: т.24/1996
D129: 1 блюдо | E129: Суп картофельный с горохом | F129: 200 | G129: 5 | H129: 5.5 | I129: 17.8 | J129: 134 | K129: 102/2011
D130: 2 блюдо | E130: Голубцы ленивые с соусом сметанным с томатом | F130: 110 | G130: 9.8 | H130: 12.6 | I130: 15 | J130: 164 | K130: 298/2011
D131: гарнир | E131: Каша вязкая пшеничная | F131: 150 | G131: 4.1 | H131: 4.2 | I131: 24.6 | J131: 153 | K131: 303/2017
D132: напиток | E132: Компот из плодов сухих | F132: 200 | G132: 0.6 | H132: 0 | I132: 31.4 | J132: 124 | K132: 820/2022
D133: хлеб | E133: Хлеб из муки пшеничной | F133: 60 | G133: 4 | H133: 1.2 | I133: 26.4 | J133: 132 | K133: 23/2022
D137: итого | F137: =SUM(F128:F136) -> 780 | G137: =SUM(G128:G136) -> 26.5 | H137: 23.7 | I137: 123.5 | J137: 751 | L137: 138.85
A138: =A120 -> 2 | B138: =B120 -> 2 | C138: Итого за день: | F138: =F127+F137 -> 1310 | G138: =G127+G137 -> 45 | H138: =H127+H137 -> 40.8 | I138: =I127+I137 -> 194.2 | J138: =J127+J137 -> 1256 | L138: 277.7
A139: 2 | B139: 3 | C139: Завтрак | D139: гор.блюдо | E139: Шницель рубленый куриный | F139: 90 | G139: 11.7 | H139: 11.2 | I139: 14.6 | J139: 189 | K139: 622/2022
D140: гарнир | E140: Рис с овощами | F140: 150 | G140: 3.5 | H140: 4.6 | I140: 33.5 | J140: 180 | K140: 665/2022
D141: гор.напиток | E141: Чай с сахаром | F141: 200 | G141: 0.2 | H141: 0 | I141: 10 | J141: 40 | K141: 782
D142: хлеб | E142: Хлеб из муки пшеничной | F142: 30 | G142: 2.1 | H142: 0.6 | I142: 13.2 | J142: 66 | K142: 23/2022
D143: фрукты
D144: закуска | E144: Овощи сезонные порционно (свежие или соленые огурцы или помидоры; квашенная капуста; вареные морковь или свекла) | F144: 60 | G144: 0.9 | H144: 0.1 | I144: 5.3 | J144: 26 | K144: т.24/1996
D146: итого | F146: =SUM(F139:F145) -> 530 | G146: =SUM(G139:G145) -> 18.4 | H146: 16.5 | I146: 76.6 | J146: 501 | L146: 138.85
A147: =A139 -> 2 | B147: =B139 -> 3 | C147: Обед | D147: закуска | E147: Овощи сезонные порционно (свежие или соленые огурцы или помидоры; квашенная капуста; вареные морковь или свекла) | F147: 60 | G147: 0.9 | H147: 0.1 | I147: 5.3 | J147: 26 | K147: т.24/1996
D148: 1 блюдо | E148: Суп картофельный с макаронными изделиями | F148: 200 | G148: 2.3 | H148: 2 | I148: 16.8 | J148: 96 | K148: 103/2017
D149: 2 блюдо | E149: Плов из птицы | F149: 200 | G149: 16.4 | H149: 19.9 | I149: 34.8 | J149: 354 | K149: 492/2004
D150: напиток | E150: Компот из плодов сухих | F150: 200 | G150: 0.6 | H150: 0 | I150: 31.4 | J150: 124 | K150: 820/2022
D151: хлеб | E151: Хлеб из муки пшеничный | F151: 50 | G151: 3.4 | H151: 1 | I151: 22 | J151: 110 | K151: 23/2022
D156: итого | F156: =SUM(F147:F155) -> 710 | G156: =SUM(G147:G155) -> 23.6 | H156: =SUM(H147:H155) -> 23 | I156: 110.3 | J156: 710 | L156: 138.85
A157: =A139 -> 2 | B157: =B139 -> 3 | C157: Итого за день: | F157: =F146+F156 -> 1240 | G157: =G146+G156 -> 42 | H157: =H146+H156 -> 39.5 | I157: =I146+I156 -> 186.9 | J157: =J146+J156 -> 1211 | L157: 277.7
A158: 2 | B158: 4 | C158: Завтрак | D158: хол.блюдо | E158: Бутерброд с повидлом | F158: 55 | G158: 4.4 | H158: 5.9 | I158: 27.8 | J158: 156 | K158: 2/2017
D159: гор.блюдо | E159: Каша жидкая молочная из рисовой крупы с малом сливочным | F159: 150 | G159: 6.7 | H159: 7.6 | I159: 24.4 | J159: 156 | K159: 182/2017
D160: гор.напиток | E160: Кофейный напиток злаковый на молоке | F160: 200 | G160: 3 | H160: 1.8 | I160: 26 | J160: 124 | K160: 774/2022
D162: фрукт | E162: Плоды свежие | F162: 100 | G162: 1.5 | H162: 0.5 | I162: 21 | J162: 96 | K162: 338/2017
D165: итого | F165: =SUM(F158:F164) -> 505 | G165: =SUM(G158:G164) -> 15.6 | H165: 15.8 | I165: 99.2 | J165: 532 | L165: 138.85
A166: =A158 -> 2 | B166: =B158 -> 4 | C166: Обед | D166: закуска | E166: Овощи сезонные порционно (свежие или соленые огурцы или помидоры; квашенная капуста; вареные морковь или свекла) | F166: 60 | G166: 3 | H166: 0.2 | I166: 8.3 | J166: 44 | K166: т.24/1996
D167: 1 блюдо | E167: Суп картофельный с клецками со сметаной прокипяченой | F167: 210 | G167: 2 | H167: 5.8 | I167: 10.4 | J167: 104 | K167: 108/2017
D168: 2 блюдо | E168: Гуляш из мяса птицы | F168: 100 | G168: 8.4 | H168: 10.3 | I168: 9.4 | J168: 126 | K168: 580/2022
D169: гарнир | E169: Макаронные изделия отварные | F169: 150 | G169: 5.3 | H169: 6.2 | I169: 35.3 | J169: 221 | K169: 309/2017
D170: напиток | E170: Компот из плодов сухих | F170: 200 | G170: 0.6 | H170: 0 | I170: 31.4 | J170: 124 | K170: 820/2022
D171: хлеб | E171: Хлеб из муки пшеничный | F171: 60 | G171: 4 | H171: 1.2 | I171: 26.4 | J171: 132 | K171: 23/2022
D175: итого | F175: =SUM(F166:F174) -> 780 | G175: =SUM(G166:G174) -> 23.3 | H175: 23.7 | I175: 121.2 | J175: 751 | L175: 138.85
A176: =A158 -> 2 | B176: =B158 -> 4 | C176: Итого за день: | F176: =F165+F175 -> 1285 | G176: =G165+G175 -> 38.9 | H176: =H165+H175 -> 39.5 | I176: =I165+I175 -> 220.4 | J176: =J165+J175 -> 1283 | L176: 277.7
A177: 2 | B177: 5 | C177: Завтрак | D177: гор.блюдо | E177: Тефтели (2 вариант) из говядины с соусом сметанным с томатом | F177: 90 | G177: 10 | H177: 14.1 | I177: 21.6 | J177: 223 | K177: 279/2017 331/2017
D178: гарнир | E178: Каша вязкая гречневая | F178: 150 | G178: 4.7 | H178: 5 | I178: 22.3 | J178: 169 | K178: 303/2017
D179: гор.напиток | E179: Чай с сахаром | F179: 200 | G179: 0.2 | H179: 0 | I179: 10 | J179: 40 | K179: 782
D180: хлеб | E180: Хлеб из муки пшеничной | F180: 30 | G180: 2 | H180: 0.6 | I180: 13.2 | J180: 66 | K180: 23/2022
D181: фрукты
D182: закуска | E182: Овощи сезонные порционно (свежие или соленые огурцы или помидоры; квашенная капуста; вареные морковь или свекла) | F182: 60 | G182: 0.9 | H182: 0.1 | I182: 5.3 | J182: 26 | K182: т.24/1996
D184: итого | F184: =SUM(F177:F183) -> 530 | G184: =SUM(G177:G183) -> 17.8 | H184: 19.8 | I184: 72.4 | J184: 524 | L184: 138.85
A185: =A177 -> 2 | B185: =B177 -> 5 | C185: Обед | D185: закуска | E185: Овощи сезонные порционно (свежие или соленые огурцы или помидоры; квашенная капуста; вареные морковь или свекла) | F185: 60 | G185: 3 | H185: 0.2 | I185: 8.3 | J185: 44 | K185: т.24/1996
D186: 1 блюдо | E186: Борщ с капустой и картофелем со сметаной прокипячнной | F186: 210 | G186: 2.1 | H186: 7.2 | I186: 11 | J186: 117 | K186: 82/2017
D187: 2 блюдо | E187: Пельмени мясные отварные со сметаной | F187: 200 | G187: 16.8 | H187: 18.6 | I187: 35.3 | J187: 376 | K187: 392/2017
D188: гарнир
D189: напиток | E189: Компот из плодов сухих | F189: 200 | G189: 0.6 | H189: 0 | I189: 31.4 | J189: 124 | K189: 820/2022
D190: хлеб бел. | E190: Хлеб из муки пшеничный | F190: 50 | G190: 3.4 | H190: 1 | I190: 22 | J190: 110 | K190: 23/2022
D194: итого | F194: =SUM(F185:F193) -> 720 | G194: =SUM(G185:G193) -> 25.9 | H194: 27 | I194: 108 | J194: 771 | L194: 138.85
A195: =A177 -> 2 | B195: =B177 -> 5 | C195: Итого за день: | F195: =F184+F194 -> 1250 | G195: =G184+G194 -> 43.7 | H195: =H184+H194 -> 46.8 | I195: =I184+I194 -> 180.4 | J195: =J184+J194 -> 1295 | L195: 277.7
C196: Среднее значение за период: | F196: =(F24+F43+F62+F81+F100+F119+F138+F157+F176+F195)/(IF(F24=0,0,1)+IF(F43=0,0,1)+IF(F62=0,0,1)+IF(F81=0,0,1)+IF(F100=0,0,1)+IF(F119=0,0,1)+IF(F138=0,0,1)+IF(F157=0,0,1)+IF(F176=0,0,1)+IF(F195=0,0,1)) -> 1259.5 | G196: =(G24+G43+G62+G81+G100+G119+G138+G157+G176+G195)/(IF(G24=0,0,1)+IF(G43=0,0,1)+IF(G62=0,0,1)+IF(G81=0,0,1)+IF(G100=0,0,1)+IF(G119=0,0,1)+IF(G138=0,0,1)+IF(G157=0,0,1)+IF(G176=0,0,1)+IF(G195=0,0,1)) -> 46.08 | H196: 43.7 | I196: 188.59 | J196: 1289.1 | L196: =(L24+L43+L62+L81+L100+L119+L138+L157+L176+L195)/(IF(L24=0,0,1)+IF(L43=0,0,1)+IF(L62=0,0,1)+IF(L81=0,0,1)+IF(L100=0,0,1)+IF(L119=0,0,1)+IF(L138=0,0,1)+IF(L157=0,0,1)+IF(L176=0,0,1)+IF(L195=0,0,1)) -> 277.7
